[Event "Late-Titled-Tuesday-Blitz-January-16-2024"]
[Site "Chess.com"]
[Date "2024.01.16"]
[Round "3"]
[White "Walter_White_Poland"]
[Black "RuleOfTwo"]
[Result "0-1"]
[WhiteElo "2343"]
[BlackElo "2577"]
[TimeControl "180+1"]
[EndTime "14:27:10 PST"]
[Termination "RuleOfTwo won on time"]

1. e4 {[%clk 0:02:58]} 1... e6 {[%clk 0:03:00]} 2. d4 {[%clk 0:02:57.6]} 2... d5
{[%clk 0:03:00.5]} 3. Nc3 {[%clk 0:02:57.9]} 3... Nf6 {[%clk 0:03:00.9]} 4. Bg5
{[%clk 0:02:56.8]} 4... dxe4 {[%clk 0:03:01.1]} 5. Nxe4 {[%clk 0:02:56.3]} 5...
Be7 {[%clk 0:03:01.8]} 6. Bxf6 {[%clk 0:02:54.1]} 6... gxf6 {[%clk 0:03:01.9]}
7. Nf3 {[%clk 0:02:54]} 7... f5 {[%clk 0:03:02.5]} 8. Nc3 {[%clk 0:02:51.2]}
8... a6 {[%clk 0:03:00.3]} 9. d5 {[%clk 0:02:18.6]} 9... Bf6 {[%clk 0:02:41.6]}
10. dxe6 {[%clk 0:02:14.6]} 10... Bxc3+ {[%clk 0:02:21.8]} 11. bxc3 {[%clk
0:02:15.5]} 11... Qxd1+ {[%clk 0:02:19.8]} 12. Kxd1 {[%clk 0:02:04.4]} 12...
fxe6 {[%clk 0:02:16.6]} 13. a4 {[%clk 0:01:52.7]} 13... Nc6 {[%clk 0:02:13.6]}
14. Nd4 {[%clk 0:01:46.1]} 14... Bd7 {[%clk 0:02:06.8]} 15. Bc4 {[%clk
0:01:44.7]} 15... Nxd4 {[%clk 0:01:52.1]} 16. cxd4 {[%clk 0:01:42.5]} 16...
O-O-O {[%clk 0:01:53]} 17. Re1 {[%clk 0:01:07.7]} 17... Rhe8 {[%clk 0:01:52.6]}
18. Re5 {[%clk 0:00:51.1]} 18... Kb8 {[%clk 0:01:47.2]} 19. c3 {[%clk
0:00:50.8]} 19... Bc6 {[%clk 0:01:37.7]} 20. g3 {[%clk 0:00:50.7]} 20... Bd5
{[%clk 0:01:33.9]} 21. Bxd5 {[%clk 0:00:46.4]} 21... Rxd5 {[%clk 0:01:34.8]} 22.
Rxd5 {[%clk 0:00:20.6]} 22... exd5 {[%clk 0:01:35.7]} 23. Kd2 {[%clk 0:00:20.7]}
23... a5 {[%clk 0:01:19.3]} 24. f3 {[%clk 0:00:20]} 24... c6 {[%clk 0:01:17.3]}
25. Rg1 {[%clk 0:00:19.4]} 25... Kc7 {[%clk 0:01:14.3]} 26. h4 {[%clk
0:00:19.3]} 26... b5 {[%clk 0:01:13.3]} 27. g4 {[%clk 0:00:18.7]} 27... fxg4
{[%clk 0:01:04.5]} 28. fxg4 {[%clk 0:00:18.7]} 28... bxa4 {[%clk 0:00:56.6]} 29.
g5 {[%clk 0:00:18.7]} 29... a3 {[%clk 0:00:54.5]} 30. h5 {[%clk 0:00:13]} 30...
a2 {[%clk 0:00:47.2]} 31. g6 {[%clk 0:00:07.5]} 31... hxg6 {[%clk 0:00:43.9]}
32. hxg6 {[%clk 0:00:07.5]} 32... Rg8 {[%clk 0:00:43]} 33. Ra1 {[%clk
0:00:03.6]} 33... Rxg6 {[%clk 0:00:42.6]} 34. Kc2 {[%clk 0:00:02.9]} 34... Kb6
{[%clk 0:00:33.4]} 35. Kb3 {[%clk 0:00:02.8]} 35... Kb5 {[%clk 0:00:32.8]} 36.
Rxa2 {[%clk 0:00:02.5]} 36... Rg3 {[%clk 0:00:30.6]} 37. Rc2 {[%clk 0:00:02.1]}
37... a4+ {[%clk 0:00:29.7]} 38. Ka3 {[%clk 0:00:02.3]} 38... Kc4 {[%clk
0:00:30]} 39. Kxa4 {[%clk 0:00:01.9]} 39... Rxc3 {[%clk 0:00:29.6]} 0-1

[Event "Late-Titled-Tuesday-Blitz-January-16-2024"]
[Site "Chess.com"]
[Date "2024.01.16"]
[Round "3"]
[White "Trovita84"]
[Black "FredddieCroderg"]
[Result "0-1"]
[WhiteElo "2102"]
[BlackElo "2353"]
[TimeControl "180+1"]
[EndTime "14:27:12 PST"]
[Termination "FredddieCroderg won on time"]

1. e4 {[%clk 0:02:18.8]} 1... c6 {[%clk 0:02:59.2]} 2. Nf3 {[%clk 0:02:18.5]}
2... d5 {[%clk 0:03:00.1]} 3. exd5 {[%clk 0:02:16.1]} 3... cxd5 {[%clk
0:02:59.9]} 4. Ne5 {[%clk 0:02:16.4]} 4... Qb6 {[%clk 0:02:59]} 5. d4 {[%clk
0:02:12.7]} 5... Nc6 {[%clk 0:02:58.9]} 6. Nxc6 {[%clk 0:01:58.6]} 6... bxc6
{[%clk 0:02:59]} 7. c3 {[%clk 0:01:56.5]} 7... Ba6 {[%clk 0:02:56.2]} 8. Bd3
{[%clk 0:01:40.3]} 8... Bxd3 {[%clk 0:02:55.2]} 9. Qxd3 {[%clk 0:01:34.2]} 9...
Qb5 {[%clk 0:02:55.8]} 10. Qxb5 {[%clk 0:01:22.6]} 10... cxb5 {[%clk 0:02:56.7]}
11. Nd2 {[%clk 0:01:22]} 11... e6 {[%clk 0:02:56]} 12. a4 {[%clk 0:01:21.8]}
12... b4 {[%clk 0:02:55.1]} 13. Nb3 {[%clk 0:01:12.3]} 13... Nf6 {[%clk
0:02:54.6]} 14. f3 {[%clk 0:01:11.8]} 14... Rb8 {[%clk 0:02:52.6]} 15. Na5
{[%clk 0:01:01.6]} 15... bxc3 {[%clk 0:02:51.6]} 16. bxc3 {[%clk 0:01:01.5]}
16... Rb6 {[%clk 0:02:47.2]} 17. Bf4 {[%clk 0:00:53.4]} 17... Be7 {[%clk
0:02:37.3]} 18. O-O {[%clk 0:00:40.9]} 18... O-O {[%clk 0:02:36]} 19. Rab1
{[%clk 0:00:29.8]} 19... Rc8 {[%clk 0:02:34.2]} 20. Bd2 {[%clk 0:00:20.6]} 20...
Bd8 {[%clk 0:02:23.4]} 21. Rxb6 {[%clk 0:00:16.4]} 21... axb6 {[%clk 0:02:19.3]}
22. Nb3 {[%clk 0:00:16.3]} 22... Ne8 {[%clk 0:02:18.4]} 23. Ra1 {[%clk
0:00:14.9]} 23... Nd6 {[%clk 0:02:17.4]} 24. Kf1 {[%clk 0:00:13.8]} 24... Nc4
{[%clk 0:02:17]} 25. Ke2 {[%clk 0:00:13.7]} 25... h5 {[%clk 0:02:09.5]} 26. h3
{[%clk 0:00:12.7]} 26... Kh7 {[%clk 0:02:07.6]} 27. Be1 {[%clk 0:00:11.8]} 27...
Kg6 {[%clk 0:02:07.3]} 28. Nd2 {[%clk 0:00:11.8]} 28... Nd6 {[%clk 0:02:03]} 29.
Nb3 {[%clk 0:00:07.9]} 29... f6 {[%clk 0:01:55]} 30. Kd3 {[%clk 0:00:07.9]}
30... e5 {[%clk 0:01:54.2]} 31. Bf2 {[%clk 0:00:07.1]} 31... e4+ {[%clk
0:01:46.2]} 32. Ke2 {[%clk 0:00:06.7]} 32... Rxc3 {[%clk 0:01:41.1]} 33. Nd2
{[%clk 0:00:05.7]} 33... f5 {[%clk 0:01:33.6]} 34. Bg3 {[%clk 0:00:05.1]} 34...
Nc4 {[%clk 0:01:29.6]} 35. Nxc4 {[%clk 0:00:03.8]} 35... Rxc4 {[%clk 0:01:29.6]}
36. Ke3 {[%clk 0:00:03.9]} 36... Bg5+ {[%clk 0:01:24.7]} 37. f4 {[%clk
0:00:03.5]} 37... Bf6 {[%clk 0:01:24.3]} 38. Rd1 {[%clk 0:00:02.3]} 38... Rxa4
{[%clk 0:01:19.1]} 39. Bf2 {[%clk 0:00:02.5]} 39... Ra3+ {[%clk 0:01:17]} 40.
Ke2 {[%clk 0:00:02.4]} 40... Ra2+ {[%clk 0:01:16.9]} 41. Ke1 {[%clk 0:00:02.4]}
41... b5 {[%clk 0:01:14.8]} 42. Rb1 {[%clk 0:00:03]} 42... Ra5 {[%clk
0:01:04.1]} 43. Kf1 {[%clk 0:00:03.1]} 43... Be7 {[%clk 0:01:03.2]} 44. Be1
{[%clk 0:00:03.3]} 44... b4 {[%clk 0:01:02.4]} 45. Rc1 {[%clk 0:00:02.3]} 45...
Rb5 {[%clk 0:00:59.6]} 46. Rc6+ {[%clk 0:00:02]} 46... Kf7 {[%clk 0:00:58.3]}
47. Rc7 {[%clk 0:00:02.6]} 47... b3 {[%clk 0:00:57.4]} 48. Bh4 {[%clk
0:00:02.5]} 48... b2 {[%clk 0:00:55.5]} 49. Rxe7+ {[%clk 0:00:02.1]} 49... Kf8
{[%clk 0:00:54.4]} 0-1

[Event "Late-Titled-Tuesday-Blitz-January-16-2024"]
[Site "Chess.com"]
[Date "2024.01.16"]
[Round "3"]
[White "kai_nov"]
[Black "bazar-wokzal"]
[Result "0-1"]
[WhiteElo "2256"]
[BlackElo "2560"]
[TimeControl "180+1"]
[EndTime "14:27:13 PST"]
[Termination "bazar-wokzal won on time"]

1. d4 {[%clk 0:03:00.9]} 1... Nf6 {[%clk 0:02:55.3]} 2. c4 {[%clk 0:03:00.6]}
2... Nc6 {[%clk 0:02:55.1]} 3. Nf3 {[%clk 0:02:59.4]} 3... e6 {[%clk 0:02:55.4]}
4. Nc3 {[%clk 0:02:53.2]} 4... Bb4 {[%clk 0:02:55.4]} 5. Bg5 {[%clk 0:02:45.3]}
5... h6 {[%clk 0:02:55.1]} 6. Bh4 {[%clk 0:02:44.8]} 6... g5 {[%clk 0:02:55]} 7.
Bg3 {[%clk 0:02:44.9]} 7... Ne4 {[%clk 0:02:55.4]} 8. Qc2 {[%clk 0:02:22.7]}
8... d5 {[%clk 0:02:54.9]} 9. e3 {[%clk 0:02:17]} 9... h5 {[%clk 0:02:54.5]} 10.
h4 {[%clk 0:02:09.2]} 10... g4 {[%clk 0:02:54.1]} 11. Ng5 {[%clk 0:02:01.8]}
11... Nxg3 {[%clk 0:02:36.3]} 12. fxg3 {[%clk 0:02:01.6]} 12... Be7 {[%clk
0:02:36.3]} 13. Nh7 {[%clk 0:00:39.6]} 13... Nb4 {[%clk 0:02:28.6]} 14. Qb1
{[%clk 0:00:39.5]} 14... c5 {[%clk 0:02:28.5]} 15. a3 {[%clk 0:00:30.8]} 15...
Nc6 {[%clk 0:02:25.1]} 16. dxc5 {[%clk 0:00:28.3]} 16... d4 {[%clk 0:02:15]} 17.
exd4 {[%clk 0:00:22.4]} 17... Qxd4 {[%clk 0:02:13.9]} 18. Nb5 {[%clk 0:00:20.3]}
18... Qe3+ {[%clk 0:02:03]} 19. Be2 {[%clk 0:00:20.1]} 19... Qxg3+ {[%clk
0:02:01.8]} 20. Kd1 {[%clk 0:00:19]} 20... Bxc5 {[%clk 0:01:32]} 21. Nf6+ {[%clk
0:00:16.6]} 21... Ke7 {[%clk 0:01:28.5]} 22. Ne4 {[%clk 0:00:17]} 22... Qxg2
{[%clk 0:01:28.6]} 23. Rf1 {[%clk 0:00:13.8]} 23... Rd8+ {[%clk 0:01:27.8]} 24.
Ke1 {[%clk 0:00:13.9]} 24... Be3 {[%clk 0:01:12.7]} 25. Rxf7+ {[%clk 0:00:12.9]}
25... Kxf7 {[%clk 0:01:08.6]} 26. Ned6+ {[%clk 0:00:09.6]} 26... Kf8 {[%clk
0:00:59.8]} 27. Qg6 {[%clk 0:00:08.4]} 27... Qg3+ {[%clk 0:00:55.8]} 28. Kd1
{[%clk 0:00:08]} 28... Rxd6+ {[%clk 0:00:55.8]} 29. Nxd6 {[%clk 0:00:04.5]}
29... Qxd6+ {[%clk 0:00:55.8]} 30. Kc2 {[%clk 0:00:03.9]} 30... Qd2+ {[%clk
0:00:54.7]} 31. Kb3 {[%clk 0:00:04.2]} 31... Qxe2 {[%clk 0:00:45.1]} 32. Qf6+
{[%clk 0:00:04]} 32... Ke8 {[%clk 0:00:44.7]} 33. Qg6+ {[%clk 0:00:02.5]} 33...
Ke7 {[%clk 0:00:39.1]} 34. Qg7+ {[%clk 0:00:02.1]} 34... Kd6 {[%clk 0:00:36.8]}
35. Qf8+ {[%clk 0:00:01.8]} 35... Kc7 {[%clk 0:00:36.5]} 36. Rf1 {[%clk
0:00:01.2]} 36... Qd3+ {[%clk 0:00:29.5]} 0-1

[Event "Late-Titled-Tuesday-Blitz-January-16-2024"]
[Site "Chess.com"]
[Date "2024.01.16"]
[Round "3"]
[White "SipkeErnst"]
[Black "Angry_Twin"]
[Result "0-1"]
[WhiteElo "2675"]
[BlackElo "2965"]
[TimeControl "180+1"]
[EndTime "14:27:14 PST"]
[Termination "Angry_Twin won on time"]

1. d4 {[%clk 0:02:59.5]} 1... Nf6 {[%clk 0:02:59.6]} 2. c4 {[%clk 0:02:59.7]}
2... e6 {[%clk 0:03:00.2]} 3. g3 {[%clk 0:02:58.6]} 3... d5 {[%clk 0:03:00.2]}
4. Nf3 {[%clk 0:02:58.5]} 4... Bb4+ {[%clk 0:03:00.7]} 5. Bd2 {[%clk 0:02:57.6]}
5... Be7 {[%clk 0:03:00.9]} 6. Bg2 {[%clk 0:02:58]} 6... O-O {[%clk 0:03:01.5]}
7. O-O {[%clk 0:02:58.1]} 7... Nbd7 {[%clk 0:03:02.2]} 8. Qc2 {[%clk 0:02:57.1]}
8... c6 {[%clk 0:03:02.1]} 9. Rd1 {[%clk 0:02:56.3]} 9... b6 {[%clk 0:03:00.9]}
10. Bf4 {[%clk 0:02:56.4]} 10... Ba6 {[%clk 0:03:00.7]} 11. Ne5 {[%clk
0:02:55.1]} 11... Rc8 {[%clk 0:02:58.7]} 12. Nc3 {[%clk 0:02:41.8]} 12... Bxc4
{[%clk 0:02:10.8]} 13. Nxc4 {[%clk 0:02:40.3]} 13... dxc4 {[%clk 0:02:11.7]} 14.
e4 {[%clk 0:02:39]} 14... b5 {[%clk 0:02:12]} 15. a4 {[%clk 0:02:35.7]} 15...
Qb6 {[%clk 0:01:59.3]} 16. axb5 {[%clk 0:02:34.2]} 16... cxb5 {[%clk 0:01:58.3]}
17. e5 {[%clk 0:02:34.7]} 17... Ng4 {[%clk 0:01:41]} 18. h3 {[%clk 0:01:51.9]}
18... Nh6 {[%clk 0:01:39.4]} 19. d5 {[%clk 0:01:30.5]} 19... Nc5 {[%clk
0:01:39]} 20. d6 {[%clk 0:01:30.5]} 20... Bd8 {[%clk 0:01:38.7]} 21. Bxh6 {[%clk
0:00:59.8]} 21... gxh6 {[%clk 0:01:38.4]} 22. Ne4 {[%clk 0:00:51.4]} 22... Nxe4
{[%clk 0:01:19.4]} 23. Bxe4 {[%clk 0:00:44.7]} 23... Rc5 {[%clk 0:01:19.3]} 24.
Re1 {[%clk 0:00:29.2]} 24... Kg7 {[%clk 0:01:02]} 25. Bf3 {[%clk 0:00:15.6]}
25... f6 {[%clk 0:00:58.5]} 26. exf6+ {[%clk 0:00:15.3]} 26... Rxf6 {[%clk
0:00:58]} 27. Bg4 {[%clk 0:00:11.2]} 27... Rg5 {[%clk 0:00:52.1]} 28. Re2 {[%clk
0:00:04.9]} 28... e5 {[%clk 0:00:33.7]} 29. Kg2 {[%clk 0:00:04.1]} 29... Qxd6
{[%clk 0:00:20.7]} 30. Rd1 {[%clk 0:00:03.8]} 30... Qc6+ {[%clk 0:00:19.8]} 31.
Qe4 {[%clk 0:00:02.6]} 31... Qxe4+ {[%clk 0:00:19.7]} 32. Rxe4 {[%clk
0:00:03.1]} 32... Bb6 {[%clk 0:00:20.6]} 33. Rd7+ {[%clk 0:00:03]} 33... Rf7
{[%clk 0:00:21]} 34. Rxf7+ {[%clk 0:00:02.3]} 34... Kxf7 {[%clk 0:00:21.9]} 35.
h4 {[%clk 0:00:01.4]} 35... Rg7 {[%clk 0:00:19.6]} 0-1

[Event "Late-Titled-Tuesday-Blitz-January-16-2024"]
[Site "Chess.com"]
[Date "2024.01.16"]
[Round "3"]
[White "Lion-Al-Messi"]
[Black "cthulhuuu"]
[Result "0-1"]
[WhiteElo "2599"]
[BlackElo "2444"]
[TimeControl "180+1"]
[EndTime "14:27:14 PST"]
[Termination "cthulhuuu won by resignation"]

1. e4 {[%clk 0:02:55.7]} 1... d6 {[%clk 0:02:59.9]} 2. d4 {[%clk 0:02:55.4]}
2... Nf6 {[%clk 0:03:00.6]} 3. Nc3 {[%clk 0:02:56.1]} 3... c6 {[%clk 0:03:00.4]}
4. Nf3 {[%clk 0:02:54.8]} 4... Bg4 {[%clk 0:03:00]} 5. Be2 {[%clk 0:02:53.1]}
5... e6 {[%clk 0:03:00.1]} 6. O-O {[%clk 0:02:53.1]} 6... d5 {[%clk 0:03:00.4]}
7. e5 {[%clk 0:02:45.9]} 7... Nfd7 {[%clk 0:03:00.7]} 8. h3 {[%clk 0:02:40.4]}
8... Bxf3 {[%clk 0:02:55.5]} 9. Bxf3 {[%clk 0:02:40]} 9... c5 {[%clk 0:02:55.8]}
10. Re1 {[%clk 0:02:29.3]} 10... Be7 {[%clk 0:02:38.5]} 11. Nb5 {[%clk 0:02:20]}
11... cxd4 {[%clk 0:02:27.6]} 12. Nxd4 {[%clk 0:02:19.7]} 12... Nc6 {[%clk
0:02:27.7]} 13. Bf4 {[%clk 0:02:19.5]} 13... Nxd4 {[%clk 0:02:20.2]} 14. Qxd4
{[%clk 0:02:20.4]} 14... Rc8 {[%clk 0:02:20.6]} 15. Qxa7 {[%clk 0:02:17.3]}
15... Rxc2 {[%clk 0:02:10.3]} 16. Qxb7 {[%clk 0:02:16.7]} 16... O-O {[%clk
0:02:00.6]} 17. Rec1 {[%clk 0:02:13]} 17... Nc5 {[%clk 0:01:56.9]} 18. Qb5
{[%clk 0:02:12.1]} 18... Qb8 {[%clk 0:00:58.1]} 19. Qxb8 {[%clk 0:02:08.5]}
19... Rxc1+ {[%clk 0:00:58.3]} 20. Rxc1 {[%clk 0:02:08.5]} 20... Rxb8 {[%clk
0:00:59.2]} 21. Bg5 {[%clk 0:01:34.9]} 21... Nd3 {[%clk 0:00:46.3]} 22. Rd1
{[%clk 0:01:21.2]} 22... Nxb2 {[%clk 0:00:40.5]} 23. Bxe7 {[%clk 0:01:14.7]}
23... Nxd1 {[%clk 0:00:40.4]} 24. Bd6 {[%clk 0:01:14.2]} 24... Rb1 {[%clk
0:00:40]} 25. Kh2 {[%clk 0:01:10.2]} 25... Nxf2 {[%clk 0:00:29]} 26. a3 {[%clk
0:01:06.8]} 26... d4 {[%clk 0:00:21.7]} 27. Kg3 {[%clk 0:01:03.8]} 27... Nd3
{[%clk 0:00:12.3]} 28. Be4 {[%clk 0:01:03.8]} 28... Rb3 {[%clk 0:00:12]} 29. Kh2
{[%clk 0:00:59.4]} 29... Nb2 {[%clk 0:00:10.4]} 30. Bb4 {[%clk 0:00:46]} 30...
d3 {[%clk 0:00:09.2]} 31. Kg1 {[%clk 0:00:45.2]} 31... Nc4 {[%clk 0:00:09.3]}
32. Kf2 {[%clk 0:00:41.5]} 32... Nxa3 {[%clk 0:00:08.9]} 33. Bd2 {[%clk
0:00:35.4]} 33... Nc4 {[%clk 0:00:09.4]} 34. Be3 {[%clk 0:00:33.7]} 34... Rb2+
{[%clk 0:00:08.2]} 35. Kf3 {[%clk 0:00:33.2]} 35... d2 {[%clk 0:00:06.8]} 0-1

[Event "Late-Titled-Tuesday-Blitz-January-16-2024"]
[Site "Chess.com"]
[Date "2024.01.16"]
[Round "3"]
[White "LUISMIGUELOV"]
[Black "dosto07"]
[Result "1-0"]
[WhiteElo "2178"]
[BlackElo "2531"]
[TimeControl "180+1"]
[EndTime "14:27:15 PST"]
[Termination "LUISMIGUELOV won by resignation"]

1. d4 {[%clk 0:02:47.9]} 1... Nf6 {[%clk 0:02:58.9]} 2. c3 {[%clk 0:02:46.1]}
2... g6 {[%clk 0:02:56.6]} 3. Bg5 {[%clk 0:02:46.3]} 3... Bg7 {[%clk 0:02:56.9]}
4. Nd2 {[%clk 0:02:45.1]} 4... d6 {[%clk 0:02:51.2]} 5. e4 {[%clk 0:02:41.3]}
5... Nbd7 {[%clk 0:02:39]} 6. f4 {[%clk 0:02:37]} 6... O-O {[%clk 0:02:28.6]} 7.
Ngf3 {[%clk 0:02:35.3]} 7... c5 {[%clk 0:02:22.3]} 8. d5 {[%clk 0:02:34.2]} 8...
a6 {[%clk 0:02:07.7]} 9. a4 {[%clk 0:02:32.7]} 9... Rb8 {[%clk 0:02:06.4]} 10.
Be2 {[%clk 0:02:31.5]} 10... h6 {[%clk 0:01:59.5]} 11. Bxf6 {[%clk 0:02:25]}
11... Nxf6 {[%clk 0:01:57.7]} 12. h3 {[%clk 0:02:25.5]} 12... Nh5 {[%clk
0:01:56.7]} 13. f5 {[%clk 0:02:16.7]} 13... Ng3 {[%clk 0:01:52.6]} 14. Rg1
{[%clk 0:02:10.5]} 14... gxf5 {[%clk 0:01:50.2]} 15. exf5 {[%clk 0:02:10.6]}
15... Bxf5 {[%clk 0:01:49.7]} 16. Kf2 {[%clk 0:02:09.4]} 16... Nxe2 {[%clk
0:01:48.8]} 17. Qxe2 {[%clk 0:02:07]} 17... b5 {[%clk 0:01:39.1]} 18. a5 {[%clk
0:02:02.1]} 18... e6 {[%clk 0:01:33.9]} 19. g4 {[%clk 0:02:02]} 19... Bh7 {[%clk
0:01:32.9]} 20. dxe6 {[%clk 0:02:01.3]} 20... fxe6 {[%clk 0:01:20.5]} 21. Qxe6+
{[%clk 0:01:59.7]} 21... Kh8 {[%clk 0:01:20.7]} 22. Rae1 {[%clk 0:01:57.5]}
22... Qf6 {[%clk 0:01:16.5]} 23. Qxf6 {[%clk 0:01:54.7]} 23... Bxf6 {[%clk
0:01:15.8]} 24. Ne4 {[%clk 0:01:46.4]} 24... Bh4+ {[%clk 0:01:13.6]} 25. Ng3
{[%clk 0:01:43.2]} 25... Rf7 {[%clk 0:00:53]} 26. Kg2 {[%clk 0:01:42.8]} 26...
Bxg3 {[%clk 0:00:44.1]} 27. Kxg3 {[%clk 0:01:42.3]} 27... Rbf8 {[%clk
0:00:44.3]} 28. Nh4 {[%clk 0:01:34.3]} 28... d5 {[%clk 0:00:37.5]} 29. Re6
{[%clk 0:01:31.7]} 29... Rf6 {[%clk 0:00:35.1]} 30. Rxf6 {[%clk 0:01:27.8]}
30... Rxf6 {[%clk 0:00:35.1]} 31. Re1 {[%clk 0:01:17.8]} 31... Be4 {[%clk
0:00:35]} 32. Nf5 {[%clk 0:01:16.3]} 32... Bxf5 {[%clk 0:00:33.4]} 33. Rf1
{[%clk 0:01:11.6]} 33... Kg7 {[%clk 0:00:28.5]} 34. gxf5 {[%clk 0:01:09.6]}
34... Rd6 {[%clk 0:00:24.6]} 35. Kf4 {[%clk 0:01:09.3]} 35... Kf6 {[%clk
0:00:25]} 36. Rg1 {[%clk 0:01:08.7]} 36... Kf7 {[%clk 0:00:18.3]} 37. Ke5 {[%clk
0:01:03.8]} 37... Rd8 {[%clk 0:00:17.9]} 38. Rg6 {[%clk 0:01:00.4]} 38... d4
{[%clk 0:00:16.8]} 39. cxd4 {[%clk 0:01:00.4]} 39... cxd4 {[%clk 0:00:17]} 40.
Rg2 {[%clk 0:00:55.7]} 40... d3 {[%clk 0:00:17.1]} 41. Rd2 {[%clk 0:00:55.3]}
41... Rd7 {[%clk 0:00:15.5]} 42. b4 {[%clk 0:00:53.4]} 42... Rd8 {[%clk
0:00:15.7]} 43. h4 {[%clk 0:00:53.3]} 43... Rd7 {[%clk 0:00:16]} 44. h5 {[%clk
0:00:52.2]} 44... Rd8 {[%clk 0:00:16.2]} 45. Ke4 {[%clk 0:00:51.5]} 45... Kf6
{[%clk 0:00:15.9]} 46. Rxd3 {[%clk 0:00:48.9]} 46... Rxd3 {[%clk 0:00:16]} 47.
Kxd3 {[%clk 0:00:49.1]} 47... Kxf5 {[%clk 0:00:16.9]} 48. Kd4 {[%clk 0:00:49.3]}
48... Kg5 {[%clk 0:00:16.4]} 49. Kc5 {[%clk 0:00:49.8]} 49... Kxh5 {[%clk
0:00:16.8]} 50. Kb6 {[%clk 0:00:50.4]} 50... Kg4 {[%clk 0:00:16.7]} 51. Kxa6
{[%clk 0:00:50.9]} 51... h5 {[%clk 0:00:17.3]} 52. Kxb5 {[%clk 0:00:51]} 52...
h4 {[%clk 0:00:18.2]} 53. a6 {[%clk 0:00:51.1]} 53... h3 {[%clk 0:00:18.7]} 54.
a7 {[%clk 0:00:51.6]} 54... h2 {[%clk 0:00:19]} 55. a8=Q {[%clk 0:00:51.6]}
55... Kg3 {[%clk 0:00:18.5]} 56. Qh1 {[%clk 0:00:50.7]} 1-0

[Event "Late-Titled-Tuesday-Blitz-January-16-2024"]
[Site "Chess.com"]
[Date "2024.01.16"]
[Round "3"]
[White "SmirnovTimofey2000"]
[Black "laskakid"]
[Result "0-1"]
[WhiteElo "1983"]
[BlackElo "2316"]
[TimeControl "180+1"]
[EndTime "14:27:16 PST"]
[Termination "laskakid won by checkmate"]

1. e4 {[%clk 0:03:00.9]} 1... e5 {[%clk 0:02:59.9]} 2. Nf3 {[%clk 0:03:00.7]}
2... Nc6 {[%clk 0:03:00.2]} 3. Bc4 {[%clk 0:03:00.7]} 3... Nf6 {[%clk
0:02:59.5]} 4. Ng5 {[%clk 0:03:00.8]} 4... d5 {[%clk 0:02:59]} 5. exd5 {[%clk
0:03:01.3]} 5... Na5 {[%clk 0:02:59.2]} 6. Bb5+ {[%clk 0:03:01.8]} 6... c6
{[%clk 0:02:59.6]} 7. dxc6 {[%clk 0:03:02.6]} 7... bxc6 {[%clk 0:03:00]} 8. Bd3
{[%clk 0:03:03.1]} 8... Nd5 {[%clk 0:02:56.6]} 9. Ne4 {[%clk 0:02:46.1]} 9...
Nf4 {[%clk 0:02:49.6]} 10. Be2 {[%clk 0:02:36.1]} 10... Nxg2+ {[%clk 0:02:45.1]}
11. Kf1 {[%clk 0:02:36]} 11... Bh3 {[%clk 0:02:39.9]} 12. Kg1 {[%clk 0:02:30.8]}
12... f5 {[%clk 0:02:20.4]} 13. Ng3 {[%clk 0:02:18.6]} 13... Nh4 {[%clk
0:01:57.5]} 14. d3 {[%clk 0:02:11.2]} 14... f4 {[%clk 0:01:45.5]} 15. Ne4 {[%clk
0:02:09.1]} 15... Bg2 {[%clk 0:01:41.6]} 16. Nbd2 {[%clk 0:02:00.7]} 16... Qd7
{[%clk 0:01:22.5]} 17. Nf3 {[%clk 0:01:47]} 17... Bxh1 {[%clk 0:01:01.6]} 18.
Nxh4 {[%clk 0:01:46.2]} 18... Bxe4 {[%clk 0:00:59.4]} 19. Bg4 {[%clk 0:01:42.1]}
19... Qd6 {[%clk 0:00:51]} 20. dxe4 {[%clk 0:01:37.6]} 20... Qxd1+ {[%clk
0:00:50.7]} 21. Bxd1 {[%clk 0:01:38.5]} 21... O-O-O {[%clk 0:00:49.2]} 22. Bg4+
{[%clk 0:01:32.2]} 22... Kc7 {[%clk 0:00:48.6]} 23. b4 {[%clk 0:01:31.6]} 23...
Bxb4 {[%clk 0:00:46.9]} 24. Bb2 {[%clk 0:01:30.2]} 24... Rhe8 {[%clk 0:00:43.6]}
25. Nf3 {[%clk 0:01:05.3]} 25... Nc4 {[%clk 0:00:42.5]} 26. Rb1 {[%clk
0:00:53.3]} 26... Nxb2 {[%clk 0:00:36.1]} 27. Rxb2 {[%clk 0:00:53.5]} 27... Bc5
{[%clk 0:00:32.6]} 28. Rb1 {[%clk 0:00:41.7]} 28... Rb8 {[%clk 0:00:30.1]} 29.
Rd1 {[%clk 0:00:31.3]} 29... Red8 {[%clk 0:00:29.6]} 30. Rxd8 {[%clk 0:00:30]}
30... Rxd8 {[%clk 0:00:28.7]} 31. Nxe5 {[%clk 0:00:30.9]} 31... Rd2 {[%clk
0:00:26.2]} 32. Nd3 {[%clk 0:00:21.1]} 32... Rxc2 {[%clk 0:00:22.4]} 33. Kg2
{[%clk 0:00:14]} 33... Bd4 {[%clk 0:00:18.1]} 34. a4 {[%clk 0:00:10.8]} 34... c5
{[%clk 0:00:17.4]} 35. Kf3 {[%clk 0:00:10.1]} 35... c4 {[%clk 0:00:16.4]} 36.
Nb4 {[%clk 0:00:09.6]} 36... Rxf2# {[%clk 0:00:15.3]} 0-1